[Event "Championnat du monde jeunes U10"]
[Date "2024.11.24"]
[White "Llari, Marc"]
[Black "Zhu, Linxi"]
[WhiteElo "2201"]
[BlackElo "2100"]
[Round "9.2"]
[Result "1-0"]
[TimeControl "5400+30"]

1. e4 {[%clk 1:30:59]} 1... c5 {[%clk 1:30:54]} 2. Nf3 {[%clk 1:31:24]} 2... d6
{[%clk 1:31:19]} 3. d4 {[%clk 1:31:49]} 3... cxd4 {[%clk 1:31:45]} 4. Nxd4
{[%clk 1:32:12]} 4... Nf6 {[%clk 1:32:11]} 5. Nc3 {[%clk 1:32:35]} 5... a6
{[%clk 1:32:37]} 6. Bc4 {[%clk 1:32:58]} 6... e6 {[%clk 1:32:46]} 7. Be3 {[%clk
1:33:22]} 7... b5 {[%clk 1:30:14]} 8. Bb3 {[%clk 1:33:29]} 8... Bb7 {[%clk
1:27:30]} 9. Qe2 {[%clk 1:33:21]} 9... Qc8 {[%clk 1:20:24]} 10. O-O-O {[%clk
1:29:27]} 10... Be7 {[%clk 1:18:42]} 11. f3 {[%clk 1:29:30]} 11... Nc6 {[%clk
1:16:51]} 12. g4 {[%clk 1:27:02]} 12... Na5 {[%clk 1:15:07]} 13. Kb1 {[%clk
1:25:54]} 13... Nc4 {[%clk 1:10:36]} 14. Bc1 {[%clk 1:23:52]} 14... Nd7 {[%clk
1:06:59]} 15. h4 {[%clk 1:22:45]} 15... Qc5 {[%clk 1:01:43]} 16. g5 {[%clk
1:19:01]} 16... Bd8 {[%clk 0:59:19]} 17. f4 {[%clk 1:16:02]} 17... Ba5 {[%clk
0:56:02]} 18. Rh3 {[%clk 1:13:57]} 18... Ndb6 {[%clk 0:44:24]} 19. h5 {[%clk
1:11:58]} 19... Rc8 {[%clk 0:39:38]} 20. Rhd3 {[%clk 1:10:02]} 20... g6 {[%clk
0:36:30]} 21. f5 {[%clk 1:03:56]} 21... e5 {[%clk 0:35:37]} 22. Nf3 {[%clk
1:03:52]} 22... gxf5 {[%clk 0:34:33]} 23. exf5 {[%clk 1:03:48]} 23... Bxc3
{[%clk 0:32:22]} 24. Rxc3 {[%clk 0:55:37]} 24... Nd5 {[%clk 0:31:43]} 25. Rcd3
{[%clk 0:47:14]} 25... Nb4 {[%clk 0:31:34]} 26. g6 {[%clk 0:46:38]} 26... hxg6
{[%clk 0:29:59]} 27. fxg6 {[%clk 0:45:38]} 27... fxg6 {[%clk 0:24:18]} 28. hxg6
{[%clk 0:43:06]} 28... Rc7 {[%clk 0:20:08]} 29. Ng5 {[%clk 0:40:35]} 29... Bd5
{[%clk 0:17:36]} 30. g7 {[%clk 0:38:27]} 30... Rg8 {[%clk 0:13:46]} 31. Rxd5
{[%clk 0:36:05]} 31... Nxd5 {[%clk 0:14:03]} 32. Qh5+ {[%clk 0:36:24]} 32... Kd7
{[%clk 0:14:08]} 33. Qf7+ {[%clk 0:36:25]} 33... Ne7 {[%clk 0:14:31]} 34. Ne6
{[%clk 0:36:20]} 34... Qb6 {[%clk 0:12:16]} 35. Nxc7 {[%clk 0:35:42]} 35... Qxc7
{[%clk 0:12:35]} 36. Bg5 {[%clk 0:35:53]} 36... Qd8 {[%clk 0:11:52]} 37. Bxe7
{[%clk 0:36:01]} 37... Qe8 {[%clk 0:12:14]} 38. Qxe8+ {[%clk 0:35:30]} 38...
Kxe8 {[%clk 0:12:39]} 39. Bf8 {[%clk 0:35:48]} 1-0

[Variant "Standard"]
[Site "Europe Echecs"]

[Event "Championnat du monde jeunes U10"]
[Date "2024.11.24"]
[White "Nguyen Quang Anh"]
[Black "Xia, Joshua"]
[WhiteElo "1889"]
[BlackElo "2052"]
[Round "9.3"]
[Result "1-0"]
[TimeControl "5400+30"]

1. d4 {[%clk 1:30:56]} 1... Nf6 {[%clk 1:30:53]} 2. c4 {[%clk 1:31:09]} 2... g6
{[%clk 1:31:19]} 3. Nc3 {[%clk 1:31:28]} 3... d5 {[%clk 1:31:43]} 4. cxd5 {[%clk
1:31:30]} 4... Nxd5 {[%clk 1:32:05]} 5. e4 {[%clk 1:31:23]} 5... Nxc3 {[%clk
1:32:22]} 6. bxc3 {[%clk 1:31:23]} 6... Bg7 {[%clk 1:32:46]} 7. Bc4 {[%clk
1:31:32]} 7... c5 {[%clk 1:33:06]} 8. Ne2 {[%clk 1:31:36]} 8... Nc6 {[%clk
1:33:31]} 9. Be3 {[%clk 1:31:49]} 9... O-O {[%clk 1:33:45]} 10. O-O {[%clk
1:31:51]} 10... e6 {[%clk 1:33:35]} 11. Rc1 {[%clk 1:30:50]} 11... b6 {[%clk
1:33:51]} 12. Qd2 {[%clk 1:29:26]} 12... Bb7 {[%clk 1:33:17]} 13. Rfd1 {[%clk
1:22:23]} 13... Na5 {[%clk 1:32:20]} 14. Bd3 {[%clk 1:22:40]} 14... Qc7 {[%clk
1:28:05]} 15. h4 {[%clk 1:21:01]} 15... h5 {[%clk 1:19:53]} 16. e5 {[%clk
1:16:33]} 16... Rfd8 {[%clk 1:19:30]} 17. Bh6 {[%clk 1:07:50]} 17... Qc6 {[%clk
1:10:54]} 18. f3 {[%clk 1:06:33]} 18... Qe8 {[%clk 1:00:44]} 19. Bxg7 {[%clk
1:03:48]} 19... Kxg7 {[%clk 1:01:06]} 20. Qg5 {[%clk 1:04:07]} 20... Qh8 {[%clk
0:36:59]} 21. Nf4 {[%clk 0:59:09]} 21... Qh6 {[%clk 0:33:24]} 22. Qf6+ {[%clk
0:59:11]} 22... Kg8 {[%clk 0:32:43]} 23. dxc5 {[%clk 0:47:17]} 23... Qg7 {[%clk
0:26:42]} 24. Qg5 {[%clk 0:46:31]} 24... bxc5 {[%clk 0:25:39]} 25. Bxg6 {[%clk
0:40:01]} 25... Rxd1+ {[%clk 0:25:47]} 26. Rxd1 {[%clk 0:40:27]} 26... fxg6
{[%clk 0:23:19]} 27. Nxe6 {[%clk 0:40:28]} 27... Qf7 {[%clk 0:23:01]} 28. Nd8
{[%clk 0:39:42]} 28... Qf5 {[%clk 0:16:26]} 29. Qe7 {[%clk 0:39:32]} 29... Bc6
{[%clk 0:16:00]} 30. Rd6 {[%clk 0:39:23]} 30... Rb8 {[%clk 0:04:51]} 31. Rf6
{[%clk 0:38:56]} 1-0

[Variant "Standard"]
[Site "Europe Echecs"]

[Event "Championnat du monde jeunes U10"]
[Date "2024.11.24"]
[White "Anetov, Amirzhan"]
[Black "Anand, Tsogtbileg"]
[WhiteElo "1767"]
[BlackElo "1974"]
[Round "9.4"]
[Result "0-1"]
[TimeControl "5400+30"]

1. d4 {[%clk 1:30:59]} 1... Nf6 {[%clk 1:30:46]} 2. c4 {[%clk 1:31:27]} 2... e6
{[%clk 1:25:40]} 3. Nc3 {[%clk 1:31:51]} 3... d5 {[%clk 1:26:00]} 4. cxd5 {[%clk
1:32:17]} 4... exd5 {[%clk 1:24:59]} 5. Bg5 {[%clk 1:32:42]} 5... Be7 {[%clk
1:25:00]} 6. e3 {[%clk 1:33:06]} 6... c6 {[%clk 1:25:00]} 7. Bd3 {[%clk
1:33:31]} 7... Nbd7 {[%clk 1:23:27]} 8. Qc2 {[%clk 1:33:50]} 8... Nf8 {[%clk
1:21:49]} 9. Nge2 {[%clk 1:33:36]} 9... Bg4 {[%clk 1:18:44]} 10. f3 {[%clk
1:29:08]} 10... Bh5 {[%clk 1:18:59]} 11. Nf4 {[%clk 1:22:46]} 11... Bg6 {[%clk
1:18:59]} 12. Bxg6 {[%clk 1:23:00]} 12... Nxg6 {[%clk 1:14:56]} 13. Nxg6 {[%clk
1:23:23]} 13... hxg6 {[%clk 1:15:18]} 14. O-O-O {[%clk 1:19:08]} 14... Qa5
{[%clk 1:11:37]} 15. h4 {[%clk 1:13:52]} 15... O-O-O {[%clk 1:07:50]} 16. Rhe1
{[%clk 1:12:14]} 16... Ng8 {[%clk 1:01:07]} 17. e4 {[%clk 0:50:31]} 17... Bxg5+
{[%clk 1:00:34]} 18. hxg5 {[%clk 0:50:57]} 18... dxe4 {[%clk 1:00:59]} 19. d5
{[%clk 0:51:20]} 19... Ne7 {[%clk 0:58:10]} 20. fxe4 {[%clk 0:51:04]} 20... Kb8
{[%clk 0:56:43]} 21. Qf2 {[%clk 0:44:30]} 21... cxd5 {[%clk 0:51:40]} 22. exd5
{[%clk 0:43:41]} 22... Nxd5 {[%clk 0:45:58]} 23. Qg3+ {[%clk 0:24:51]} 23... Qc7
{[%clk 0:41:46]} 24. Qxc7+ {[%clk 0:25:14]} 24... Nxc7 {[%clk 0:42:12]} 25.
Rxd8+ {[%clk 0:25:38]} 25... Rxd8 {[%clk 0:42:35]} 26. Re7 {[%clk 0:26:06]}
26... Rf8 {[%clk 0:39:02]} 27. Ne4 {[%clk 0:25:14]} 27... Re8 {[%clk 0:37:54]}
28. Rxe8+ {[%clk 0:25:32]} 28... Nxe8 {[%clk 0:38:19]} 29. Kd2 {[%clk 0:25:59]}
29... Kc7 {[%clk 0:38:10]} 30. Kd3 {[%clk 0:26:23]} 30... Kc6 {[%clk 0:34:32]}
31. Kd4 {[%clk 0:26:21]} 31... Nd6 {[%clk 0:34:46]} 32. Nf2 {[%clk 0:26:20]}
32... f6 {[%clk 0:34:15]} 33. gxf6 gxf6 {[%clk 0:34:19]} 34. Nd3 {[%clk
0:22:11]} 34... Nf5+ {[%clk 0:33:35]} 35. Ke4 {[%clk 0:20:51]} 35... Kd6 {[%clk
0:33:44]} 36. Nf4 {[%clk 0:20:59]} 36... Ne7 {[%clk 0:34:04]} 37. b4 {[%clk
0:19:48]} 37... f5+ {[%clk 0:33:51]} 38. Kd4 {[%clk 0:19:16]} 38... g5 {[%clk
0:33:33]} 39. Nh3 {[%clk 0:19:40]} 39... g4 {[%clk 0:33:10]} 40. Nf4 {[%clk
0:19:54]} 40... b5 {[%clk 0:33:02]} 41. a3 {[%clk 0:19:35]} 41... Nc6+ {[%clk
0:31:52]} 42. Kd3 {[%clk 0:19:47]} 42... Ne5+ {[%clk 0:29:52]} 43. Kd4 {[%clk
0:19:54]} 43... Nf7 {[%clk 0:29:54]} 44. Nh5 {[%clk 0:13:38]} 44... Nd8 {[%clk
0:29:29]} 45. g3 {[%clk 0:13:12]} 45... Ne6+ {[%clk 0:29:39]} 46. Ke3 {[%clk
0:13:18]} 46... Ke5 {[%clk 0:29:33]} 47. Kd2 {[%clk 0:13:14]} 47... Ke4 {[%clk
0:28:06]} 48. Ke2 {[%clk 0:13:02]} 48... Nd4+ {[%clk 0:27:25]} 49. Kf2 {[%clk
0:13:26]} 49... Nc2 {[%clk 0:27:45]} 50. Nf6+ {[%clk 0:13:52]} 50... Kd4 {[%clk
0:27:46]} 51. Ne8 {[%clk 0:14:03]} 51... Nxa3 {[%clk 0:27:33]} 52. Nd6 {[%clk
0:14:27]} 52... Ke5 {[%clk 0:27:30]} 53. Nc8 {[%clk 0:14:50]} 53... a6 {[%clk
0:27:37]} 54. Ne7 {[%clk 0:15:13]} 54... Nc2 {[%clk 0:28:00]} 55. Nc6+ {[%clk
0:15:08]} 55... Kd6 {[%clk 0:28:22]} 56. Na5 {[%clk 0:15:29]} 56... Nxb4 {[%clk
0:28:46]} 57. Ke3 {[%clk 0:15:56]} 57... Ke5 {[%clk 0:29:08]} 58. Nb3 {[%clk
0:16:15]} 58... Nc6 {[%clk 0:29:14]} 59. Nc5 {[%clk 0:15:53]} 59... a5 {[%clk
0:29:27]} 60. Nd3+ {[%clk 0:16:19]} 60... Kf6 {[%clk 0:29:45]} 61. Nc5 {[%clk
0:16:35]} 61... a4 {[%clk 0:29:41]} 62. Kf4 {[%clk 0:16:48]} 62... a3 {[%clk
0:29:00]} 63. Nb3 {[%clk 0:17:16]} 63... a2 {[%clk 0:28:58]} 64. Ke3 {[%clk
0:17:40]} 64... Ke5 {[%clk 0:29:12]} 65. Na1 {[%clk 0:18:05]} 65... Nb4 {[%clk
0:29:31]} 66. Kd2 {[%clk 0:18:29]} 66... f4 {[%clk 0:29:52]} 67. Kc3 {[%clk
0:18:52]} 67... fxg3 {[%clk 0:30:14]} 68. Kxb4 {[%clk 0:19:19]} 68... g2 {[%clk
0:30:40]} 69. Kxb5 {[%clk 0:19:18]} 69... g1=Q {[%clk 0:31:04]} 70. Nb3 {[%clk
0:19:43]} 70... a1=Q {[%clk 0:31:26]} 71. Kc4 {[%clk 0:20:08]} 71... Qa4+ {[%clk
0:31:50]} 72. Kc3 {[%clk 0:20:34]} 72... Qe3+ 73. Kb2 {[%clk 0:21:00]} 73...
Qaxb3+ {[%clk 0:32:40]} 74. Ka1 {[%clk 0:21:25]} 74... Qc1# {[%clk 0:33:06]} 0-1

[Variant "Standard"]
[Site "Europe Echecs"]

[Event "Championnat du monde jeunes U10"]
[Date "2024.11.24"]
[White "Mirzhanov, Arlan"]
[Black "Mulay, Vivan Prakash"]
[WhiteElo "1721"]
[BlackElo "1823"]
[Round "9.5"]
[Result "1-0"]
[TimeControl "5400+30"]

1. e4 {[%clk 1:30:59]} 1... c5 {[%clk 1:30:54]} 2. Nf3 {[%clk 1:31:07]} 2... d6
{[%clk 1:31:10]} 3. d4 {[%clk 1:30:56]} 3... cxd4 {[%clk 1:31:32]} 4. Nxd4
{[%clk 1:31:24]} 4... Nf6 {[%clk 1:31:50]} 5. Nc3 {[%clk 1:31:47]} 5... a6
{[%clk 1:32:11]} 6. f3 {[%clk 1:31:50]} 6... e6 {[%clk 1:32:14]} 7. Be3 {[%clk
1:32:13]} 7... b5 {[%clk 1:32:27]} 8. Qd2 {[%clk 1:31:09]} 8... Nbd7 {[%clk
1:31:55]} 9. g4 {[%clk 1:28:27]} 9... Nb6 {[%clk 1:31:23]} 10. a3 {[%clk
1:24:18]} 10... Bb7 {[%clk 1:30:24]} 11. O-O-O {[%clk 1:16:02]} 11... Rc8 {[%clk
1:30:15]} 12. Nb3 {[%clk 1:07:42]} 12... Nc4 {[%clk 1:06:05]} 13. Bxc4 {[%clk
1:08:03]} 13... Rxc4 {[%clk 1:03:21]} 14. Ne2 {[%clk 1:04:35]} 14... Rc8 {[%clk
1:00:36]} 15. Ng3 {[%clk 0:57:18]} 15... d5 {[%clk 0:55:43]} 16. e5 {[%clk
0:56:09]} 16... Nd7 {[%clk 0:53:47]} 17. Bd4 {[%clk 0:56:28]} 17... Nb6 {[%clk
0:48:08]} 18. Bxb6 {[%clk 0:48:14]} 18... Qxb6 {[%clk 0:47:02]} 19. Rhf1 {[%clk
0:47:54]} 19... b4 {[%clk 0:38:07]} 20. axb4 {[%clk 0:39:53]} 20... Qxb4 {[%clk
0:28:59]} 21. Qxb4 {[%clk 0:39:29]} 21... Bxb4 {[%clk 0:28:54]} 22. Rd4 {[%clk
0:37:55]} 22... a5 {[%clk 0:26:37]} 23. f4 {[%clk 0:34:29]} 23... Ba6 {[%clk
0:25:33]} 24. Rf3 {[%clk 0:34:04]} 24... Bc4 {[%clk 0:24:18]} 25. f5 {[%clk
0:30:05]} 25... O-O {[%clk 0:21:06]} 26. Nd2 {[%clk 0:28:41]} 26... Bb5 {[%clk
0:20:11]} 27. c3 {[%clk 0:24:22]} 27... Bc5 {[%clk 0:19:24]} 28. Rdf4 {[%clk
0:24:44]} 28... g5 {[%clk 0:16:02]} 29. fxg6 {[%clk 0:24:43]} 29... fxg6 {[%clk
0:16:11]} 30. Rf6 {[%clk 0:22:00]} 30... Rxf6 {[%clk 0:15:26]} 31. Rxf6 {[%clk
0:21:34]} 31... Bd7 {[%clk 0:15:35]} 32. Nf3 {[%clk 0:21:38]} 32... Rf8 {[%clk
0:11:41]} 33. g5 {[%clk 0:19:36]} 33... Be7 {[%clk 0:10:24]} 34. Rxf8+ {[%clk
0:19:52]} 34... Kxf8 {[%clk 0:10:41]} 35. Ne2 {[%clk 0:20:04]} 35... Kf7 {[%clk
0:10:03]} 36. Ned4 {[%clk 0:20:21]} 36... a4 {[%clk 0:10:09]} 37. Kc2 {[%clk
0:20:43]} 37... Bc8 {[%clk 0:08:27]} 38. b3 {[%clk 0:20:06]} 38... axb3+ {[%clk
0:08:41]} 39. Kxb3 {[%clk 0:20:31]} 39... Ba6 {[%clk 0:07:47]} 40. h4 {[%clk
0:20:54]} 40... Bc5 {[%clk 0:07:21]} 41. Nh2 {[%clk 0:20:03]} 41... Bxd4 {[%clk
0:04:09]} 42. cxd4 {[%clk 0:19:56]} 42... Be2 {[%clk 0:04:35]} 43. Kc2 {[%clk
0:20:17]} 43... Ke7 {[%clk 0:05:01]} 44. Kd2 {[%clk 0:20:44]} 44... Bh5 {[%clk
0:05:22]} 45. Nf1 {[%clk 0:21:10]} 45... Kd7 {[%clk 0:04:40]} 46. Kc3 {[%clk
0:21:30]} 46... Kc6 {[%clk 0:04:35]} 47. Kb4 {[%clk 0:21:54]} 47... Be2 {[%clk
0:04:12]} 48. Nd2 {[%clk 0:22:15]} 48... Bd1 {[%clk 0:04:03]} 49. Ka5 {[%clk
0:22:03]} 49... Bc2 {[%clk 0:04:01]} 50. Nf1 {[%clk 0:22:22]} 50... Bd3 {[%clk
0:03:06]} 51. Ng3 {[%clk 0:22:05]} 51... Kc7 {[%clk 0:03:12]} 52. Nh1 {[%clk
0:22:06]} 52... Kc6 {[%clk 0:03:20]} 53. Nf2 {[%clk 0:22:29]} 53... Be2 {[%clk
0:02:48]} 54. Nh3 {[%clk 0:22:49]} 54... Bd3 {[%clk 0:02:34]} 55. Nf4 {[%clk
0:23:15]} 55... Bf5 {[%clk 0:02:59]} 56. Ne2 Bd3 {[%clk 0:02:54]} 57. Nc3 {[%clk
0:24:03]} 57... Kd7 {[%clk 0:02:55]} 58. Kb6 {[%clk 0:24:28]} 58... Bf5 {[%clk
0:03:11]} 59. Na4 {[%clk 0:24:54]} 59... Ke7 {[%clk 0:03:33]} 60. Kc7 {[%clk
0:25:20]} 60... Bg4 {[%clk 0:03:12]} 61. Nb6 {[%clk 0:25:40]} 61... Bh3 {[%clk
0:03:28]} 62. Nc8+ {[%clk 0:26:06]} 62... Kf7 {[%clk 0:02:52]} 63. Kd7 {[%clk
0:26:19]} 63... Bg4 {[%clk 0:03:14]} 64. Nd6+ {[%clk 0:26:12]} 64... Kf8 {[%clk
0:03:01]} 65. Nb7 {[%clk 0:26:21]} 1-0

[Variant "Standard"]
[Site "Europe Echecs"]

[Event "Championnat du monde jeunes U10"]
[Date "2024.11.24"]
[White "Sameh Mohamed, Abdalrahman"]
[Black "Zabelin, Platon"]
[WhiteElo "2238"]
[BlackElo "1870"]
[Round "9.6"]
[Result "1-0"]
[TimeControl "5400+30"]

1. e4 {[%clk 1:30:55]} 1... c6 {[%clk 1:30:53]} 2. d4 {[%clk 1:31:21]} 2... d5
{[%clk 1:31:18]} 3. Nc3 {[%clk 1:31:48]} 3... dxe4 {[%clk 1:31:40]} 4. Nxe4
{[%clk 1:32:12]} 4... Bf5 {[%clk 1:32:02]} 5. Ng3 {[%clk 1:32:37]} 5... Bg6
{[%clk 1:32:24]} 6. h4 {[%clk 1:33:00]} 6... h6 {[%clk 1:32:44]} 7. Nf3 {[%clk
1:33:26]} 7... Nd7 {[%clk 1:33:03]} 8. h5 {[%clk 1:33:53]} 8... Bh7 {[%clk
1:33:26]} 9. Bd3 {[%clk 1:34:17]} 9... Bxd3 {[%clk 1:33:47]} 10. Qxd3 {[%clk
1:34:40]} 10... e6 {[%clk 1:34:04]} 11. Bd2 {[%clk 1:34:43]} 11... Ngf6 {[%clk
1:34:13]} 12. O-O-O {[%clk 1:35:07]} 12... Be7 {[%clk 1:34:15]} 13. Kb1 {[%clk
1:35:32]} 13... O-O {[%clk 1:34:24]} 14. Ne4 {[%clk 1:35:57]} 14... Nxe4 {[%clk
1:34:49]} 15. Qxe4 {[%clk 1:36:23]} 15... Nf6 {[%clk 1:35:15]} 16. Qe2 {[%clk
1:36:44]} 16... Qd5 {[%clk 1:35:21]} 17. Ne5 {[%clk 1:37:08]} 17... Qe4 {[%clk
1:30:43]} 18. Qxe4 {[%clk 1:34:50]} 18... Nxe4 {[%clk 1:31:11]} 19. Be1 {[%clk
1:35:18]} 19... Rfd8 {[%clk 1:26:51]} 20. f3 {[%clk 1:35:25]} 20... Nf6 {[%clk
1:26:48]} 21. Bf2 {[%clk 1:35:41]} 21... Rac8 {[%clk 1:14:14]} 22. g4 {[%clk
1:34:19]} 22... Nd5 {[%clk 1:13:35]} 23. c4 {[%clk 1:34:03]} 23... Nf4 {[%clk
1:11:56]} 24. Rhe1 {[%clk 1:30:21]} 24... Bg5 {[%clk 0:56:13]} 25. Bg3 {[%clk
1:24:12]} 25... c5 {[%clk 0:31:19]} 26. dxc5 {[%clk 0:59:56]} 26... Rxd1+ {[%clk
0:29:24]} 27. Rxd1 {[%clk 1:00:23]} 27... Rxc5 {[%clk 0:28:38]} 28. Bxf4 {[%clk
1:00:40]} 28... Bxf4 {[%clk 0:29:04]} 29. Rd8+ {[%clk 1:01:04]} 29... Kh7 {[%clk
0:29:23]} 30. Nd7 {[%clk 1:01:28]} 30... Bg5 {[%clk 0:25:40]} 31. Nf8+ {[%clk
1:01:41]} 31... Kg8 {[%clk 0:25:59]} 32. Ra8 {[%clk 1:02:04]} 1-0

[Variant "Standard"]
[Site "Europe Echecs"]

[Event "Championnat du monde jeunes U10"]
[Date "2024.11.24"]
[White "Perez Solanas, Hugo"]
[Black "Annapureddy, Rheyansh Reddy"]
[WhiteElo "1824"]
[BlackElo "2122"]
[Round "9.7"]
[Result "0-1"]
[TimeControl "5400+30"]

1. e4 {[%clk 1:30:58]} 1... c5 {[%clk 1:29:58]} 2. Nf3 {[%clk 1:31:15]} 2... Nc6
{[%clk 1:30:19]} 3. d4 {[%clk 1:31:37]} 3... cxd4 {[%clk 1:29:56]} 4. Nxd4
{[%clk 1:31:56]} 4... g6 {[%clk 1:30:25]} 5. Nc3 {[%clk 1:32:08]} 5... Bg7
{[%clk 1:30:31]} 6. Be3 {[%clk 1:32:27]} 6... Nf6 {[%clk 1:30:57]} 7. Nb3 {[%clk
1:32:46]} 7... O-O {[%clk 1:31:03]} 8. Qd2 {[%clk 1:33:02]} 8... d6 {[%clk
1:30:30]} 9. f3 {[%clk 1:33:03]} 9... Be6 {[%clk 1:29:30]} 10. O-O-O {[%clk
1:32:35]} 10... a5 {[%clk 1:27:36]} 11. a4 {[%clk 1:31:49]} 11... Bxb3 {[%clk
1:26:12]} 12. cxb3 {[%clk 1:32:16]} 12... Rc8 {[%clk 1:25:15]} 13. Kb1 {[%clk
1:30:44]} 13... Nd7 {[%clk 1:18:21]} 14. f4 {[%clk 1:23:39]} 14... Nb4 {[%clk
1:14:24]} 15. Bd4 {[%clk 1:09:12]} 15... Bxd4 {[%clk 1:02:56]} 16. Qxd4 {[%clk
1:09:32]} 16... Qb6 {[%clk 1:02:36]} 17. Bc4 {[%clk 1:02:47]} 17... Qxd4 {[%clk
0:58:52]} 18. Rxd4 {[%clk 1:03:07]} 18... Rc5 {[%clk 0:58:39]} 19. e5 {[%clk
0:59:17]} 19... Nb6 {[%clk 0:51:14]} 20. exd6 {[%clk 0:57:02]} 20... Nc6 {[%clk
0:41:50]} 21. dxe7 {[%clk 0:56:06]} 21... Nxd4 {[%clk 0:37:10]} 22. exf8=Q+
{[%clk 0:56:22]} 22... Kxf8 {[%clk 0:37:37]} 23. Rd1 {[%clk 0:51:11]} 23... Nf5
{[%clk 0:37:29]} 24. Bd3 {[%clk 0:47:52]} 24... Ne3 {[%clk 0:36:21]} 25. Rd2
{[%clk 0:47:35]} 25... Nbd5 {[%clk 0:35:57]} 26. Ne4 {[%clk 0:45:29]} 26... Rc7
{[%clk 0:33:50]} 27. g3 {[%clk 0:45:09]} 27... Nb4 {[%clk 0:32:57]} 28. Bb5
{[%clk 0:39:18]} 28... Re7 {[%clk 0:28:15]} 29. Nc3 {[%clk 0:38:26]} 29... h5
{[%clk 0:26:20]} 30. Rd4 {[%clk 0:32:45]} 30... Ng4 {[%clk 0:24:39]} 31. Re4
{[%clk 0:31:57]} 31... Nxh2 {[%clk 0:23:51]} 32. Rxe7 {[%clk 0:31:18]} 32...
Kxe7 {[%clk 0:24:18]} 33. Ne4 {[%clk 0:31:23]} 33... Nf3 {[%clk 0:24:15]} 34.
Kc1 {[%clk 0:31:21]} 34... b6 {[%clk 0:17:30]} 35. Kd1 {[%clk 0:26:23]} 35...
Ke6 {[%clk 0:12:10]} 36. Bc4+ {[%clk 0:24:05]} 36... Kf5 {[%clk 0:10:00]} 37.
Bxf7 {[%clk 0:17:49]} 37... Kxe4 {[%clk 0:09:23]} 38. Bxg6+ {[%clk 0:18:11]}
38... Ke3 {[%clk 0:09:16]} 39. Bxh5 {[%clk 0:18:32]} 39... Nd2 {[%clk 0:07:24]}
40. g4 {[%clk 0:15:09]} 40... Nxb3 {[%clk 0:04:44]} 41. g5 {[%clk 0:14:23]}
41... Nd4 {[%clk 0:04:51]} 42. g6 {[%clk 0:14:30]} 42... Nf5 {[%clk 0:05:04]}
43. Bg4 {[%clk 0:14:45]} 43... Ng7 {[%clk 0:05:00]} 44. f5 {[%clk 0:14:54]}
44... Nd5 {[%clk 0:05:00]} 45. Kc2 {[%clk 0:13:56]} 45... Kf4 {[%clk 0:03:30]}
46. f6 {[%clk 0:12:36]} 46... Nxf6 {[%clk 0:03:36]} 47. Bc8 {[%clk 0:12:43]}
47... Ne4 {[%clk 0:01:28]} 48. b4 {[%clk 0:10:54]} 48... Ke5 {[%clk 0:01:01]}
49. bxa5 {[%clk 0:10:29]} 49... bxa5 50. Kd3 {[%clk 0:07:29]} 50... Nd6 {[%clk
0:01:39]} 51. Bh3 {[%clk 0:07:45]} 51... Kd5 {[%clk 0:01:09]} 52. Bg2+ {[%clk
0:07:44]} 52... Kc5 {[%clk 0:01:09]} 53. Kc3 {[%clk 0:08:03]} 53... Nc4 {[%clk
0:00:50]} 54. Bf1 {[%clk 0:06:33]} 54... Nb6 {[%clk 0:00:39]} 55. Bb5 {[%clk
0:06:50]} 55... Nd5+ {[%clk 0:00:58]} 56. Kb3 {[%clk 0:04:31]} 56... Nf4 {[%clk
0:01:20]} 57. Kc3 {[%clk 0:04:35]} 57... Nxg6 {[%clk 0:01:44]} 58. Bd7 {[%clk
0:04:59]} 58... Ne5 {[%clk 0:02:05]} 59. Bb5 {[%clk 0:05:18]} 59... Nf5 {[%clk
0:02:04]} 60. Be8 {[%clk 0:05:37]} 60... Ne7 {[%clk 0:02:09]} 61. Bb5 {[%clk
0:05:41]} 61... Nd5+ {[%clk 0:02:32]} 62. Kb3 {[%clk 0:06:05]} 62... Kd4 {[%clk
0:02:46]} 63. Be8 {[%clk 0:06:27]} 63... Nd3 {[%clk 0:03:02]} 64. Bb5 {[%clk
0:06:11]} 64... Nc5+ {[%clk 0:03:25]} 65. Ka3 {[%clk 0:06:35]} 65... Kc3 {[%clk
0:03:09]} 66. Bc6 {[%clk 0:06:55]} 66... Nb6 {[%clk 0:03:29]} 67. Be8 {[%clk
0:07:10]} 67... Nc4+ {[%clk 0:03:54]} 68. Ka2 {[%clk 0:07:30]} 68... Kb4 {[%clk
0:04:18]} 69. Bc6 {[%clk 0:07:52]} 69... Nxa4 {[%clk 0:04:08]} 70. Be8 {[%clk
0:07:57]} 70... Nc3+ {[%clk 0:04:05]} 71. Ka1 {[%clk 0:08:25]} 71... Ka3 {[%clk
0:03:32]} 72. Bf7 {[%clk 0:07:35]} 72... Nd2 {[%clk 0:03:52]} 73. Bg8 {[%clk
0:07:58]} 73... Ne2 {[%clk 0:04:06]} 74. Bf7 {[%clk 0:07:44]} 74... Nc1 {[%clk
0:04:24]} 75. Be6 {[%clk 0:08:09]} 75... Ncb3+ {[%clk 0:04:39]} 76. Bxb3 {[%clk
0:08:33]} 76... Nxb3+ {[%clk 0:05:04]} 77. Kb1 {[%clk 0:08:56]} 77... a4 {[%clk
0:05:10]} 78. Kc2 {[%clk 0:09:20]} 78... Ka2 {[%clk 0:05:16]} 79. Kc3 {[%clk
0:09:43]} 79... a3 {[%clk 0:05:25]} 80. Kc2 {[%clk 0:10:07]} 80... Nd4+ {[%clk
0:05:52]} 81. Kc1 {[%clk 0:10:28]} 81... Kb3 {[%clk 0:06:15]} 82. Kb1 {[%clk
0:10:49]} 82... a2+ {[%clk 0:06:40]} 0-1

[Variant "Standard"]
[Site "Europe Echecs"]